bitfinex/quotes_SOLUSD_20241218
["timestamp","ask_amount","ask_price","bid_price","bid_amount"]
[1734550580133,6.3626,217.1,216.98,24.67418663]
[1734550580449,24.67418663,217.07,217.0,24.67418663]
[1734550580640,27.40878213,217.09,217.0,24.67418663]
[1734550580838,24.67418663,217.11,217.04,24.67418663]
[1734550581148,24.67418663,217.15,217.06,24.67418663]
[1734550581346,31.7474251,217.17,217.08,24.67418663]
[1734550581538,24.67418663,217.15,217.08,24.67418663]
[1734550581742,24.67418663,217.13,217.06,24.67418663]
[1734550581947,24.67418663,217.11,217.04,24.67418663]
[1734550582441,23.776884,217.1,217.02,24.67418663]
[1734550582836,23.776884,217.1,217.04,24.67418663]
[1734550583255,24.67418663,217.11,217.04,24.67418663]
[1734550583562,23.776884,217.1,217.04,24.67418663]
[1734550584134,23.776884,217.08,217.02,24.67418663]
[1734550584633,24.67418663,217.11,217.02,24.67418663]
[1734550584857,23.776884,217.08,217.02,24.67418663]
[1734550585060,24.67418663,217.07,217.0,24.67418663]
[1734550585263,23.776884,217.06,216.98,24.67418663]
[1734550586667,24.67418663,217.07,216.98,24.67418663]
[1734550586848,24.67418663,217.09,217.02,24.67418663]
[1734550587058,24.67418663,217.11,217.04,24.67418663]
[1734550587257,6.1215,217.16,217.06,24.67418663]
[1734550587553,24.67418663,217.15,217.08,24.67418663]
[1734550587749,24.67418663,217.15,217.06,24.67418663]
[1734550588070,24.67418663,217.13,217.04,24.67418663]
[1734550588574,24.67418663,217.11,217.02,24.67418663]
[1734550589071,24.67418663,217.11,217.04,24.67418663]
[1734550589250,24.67418663,217.13,217.04,24.67418663]
[1734550590044,24.67418663,217.15,217.06,24.67418663]
[1734550590342,27.45400848,217.17,217.08,24.67418663]
[1734550590768,24.67418663,217.17,217.1,24.67418663]
[1734550592049,24.67418663,217.15,217.06,24.67418663]
[1734550592355,24.17418663,217.15,217.06,24.67418663]
[1734550592767,24.67418663,217.11,217.02,24.67418663]
[1734550593176,23.776884,217.1,217.02,24.67418663]
[1734550593465,24.67418663,217.03,216.94,6.2686]
[1734550593673,24.67418663,217.01,216.92,24.67418663]
[1734550593877,24.67418663,217.01,216.94,24.67418663]
[1734550594672,23.776884,217.0,216.92,24.67418663]
[1734550594862,24.67418663,217.01,216.92,24.67418663]
[1734550595159,24.67418663,216.99,216.92,24.67418663]
[1734550595654,24.67418663,217.01,216.92,24.67418663]
[1734550596673,23.776884,217.0,216.92,24.67418663]
[1734550597349,24.67418663,216.99,216.9,24.67418663]
[1734550597548,24.67418663,216.99,216.92,24.67418663]
[1734550598071,23.776884,216.98,216.92,24.67418663]
[1734550598280,24.67418663,216.97,216.88,24.67418663]
[1734550598497,24.67418663,216.95,216.88,24.67418663]
[1734550598657,24.67418663,216.95,216.86,24.67418663]
[1734550599370,24.67418663,216.93,216.86,24.67418663]
[1734550599600,24.67418663,216.93,216.84,24.67418663]
[1734550600260,24.67418663,216.91,216.82,24.67418663]
[1734550600483,24.67418663,216.89,216.82,24.67418663]
[1734550601075,24.67418663,216.91,216.82,24.67418663]
[1734550601463,23.776884,216.9,216.82,24.67418663]
[1734550601670,23.776884,216.9,216.84,24.67418663]
[1734550602394,24.67418663,216.93,216.84,24.67418663]
[1734550602606,24.67418663,216.95,216.88,24.67418663]
[1734550602809,24.67418663,216.97,216.9,24.67418663]
[1734550602977,24.67418663,216.99,216.9,24.67418663]
[1734550603174,24.67418663,216.99,216.92,24.67418663]
[1734550603402,24.67418663,216.99,216.9,24.67418663]
[1734550603944,24.67418663,216.95,216.88,24.67418663]
[1734550604061,23.776884,216.94,216.88,24.67418663]
[1734550604263,23.776884,216.94,216.86,24.67418663]
[1734550604809,23.776884,216.94,216.88,24.67418663]
[1734550605104,23.776884,216.96,216.88,24.67418663]
[1734550605462,24.67418663,216.95,216.88,24.67418663]
[1734550606306,24.67418663,216.97,216.9,24.67418663]
[1734550606504,24.67418663,216.99,216.92,24.67418663]
[1734550609802,24.67418663,216.97,216.88,24.67418663]
[1734550610039,24.67418663,216.95,216.86,24.67418663]
[1734550610234,7.9761,217.05,216.93,24.67418663]
[1734550610429,24.67418663,217.04,216.96,24.67418663]
[1734550610630,24.67418663,217.02,216.93,24.67418663]
[1734550611113,24.67418663,217.0,216.93,24.67418663]
[1734550611634,23.776884,216.99,216.93,24.67418663]
[1734550611949,24.67418663,217.0,216.93,24.67418663]
[1734550612730,24.67418663,217.02,216.93,24.67418663]
[1734550612906,23.776884,217.01,216.93,24.67418663]
[1734550613424,24.67418663,217.0,216.91,24.67418663]
[1734550613607,24.67418663,216.98,216.89,24.67418663]
[1734550613941,23.776884,216.95,216.87,24.67418663]
[1734550616120,24.67418663,216.94,216.87,24.67418663]
[1734550616820,24.67418663,216.92,216.83,24.67418663]
[1734550617026,23.776884,216.91,216.83,24.67418663]
[1734550618031,24.67418663,216.92,216.83,24.67418663]
[1734550619718,24.67418663,216.9,216.83,24.67418663]
[1734550620121,24.67418663,216.86,216.77,0.5661447]
[1734550620317,24.67418663,216.82,216.77,0.5661447]
[1734550620514,24.67418663,216.78,216.77,0.5661447]
[1734550622521,24.67418663,216.79,216.77,0.5661447]
[1734550622705,24.67418663,216.81,216.77,0.5661447]
[1734550622915,24.67418663,216.82,216.77,0.5661447]
[1734550623248,29.06222848,216.92,216.78,24.67418663]
[1734550623249,24.67418663,216.86,216.78,24.67418663]
[1734550623535,24.67418663,216.87,216.79,24.67418663]
[1734550624039,24.67418663,216.89,216.82,24.67418663]
[1734550625039,24.67418663,216.87,216.8,24.67418663]
[1734550625511,24.67418663,216.85,216.78,24.67418663]
[1734550625706,24.67418663,216.87,216.78,24.67418663]
[1734550626315,24.67418663,216.85,216.78,24.67418663]
[1734550626809,24.67418663,216.87,216.78,24.67418663]
[1734550627121,24.67418663,216.85,216.77,0.5661447]
[1734550627321,24.67418663,216.85,216.77,25.24033133]
[1734550628154,24.67418663,216.87,216.79,24.67418663]
[1734550628316,24.67418663,216.89,216.81,24.67418663]
[1734550629319,24.67418663,216.87,216.79,24.67418663]
[1734550629520,24.67418663,216.81,216.77,0.5661447]
[1734550629856,24.67418663,216.78,216.77,0.5661447]
[1734550631224,48.45107063,216.78,216.77,0.5661447]
[1734550631437,48.45107063,216.78,216.77,4.47e-05]
[1734550631742,20.0,216.74,216.61,24.67418663]
[1734550631932,24.67418663,216.68,216.61,24.67418663]
[1734550632836,24.67418663,216.68,216.57,6.6532]
[1734550632837,24.67418663,216.66,216.59,24.67418663]
[1734550633137,24.67418663,216.6,216.53,24.67418663]
[1734550633564,24.67418663,216.6,216.51,24.67418663]
[1734550633850,24.67418663,216.58,216.51,24.67418663]
[1734550634143,24.67418663,216.56,216.48,24.67418663]
[1734550636043,24.67418663,216.56,216.47,24.67418663]
[1734550636426,24.67418663,216.56,216.48,24.67418663]
[1734550636624,48.45107063,216.56,216.55,4.47e-05]
[1734550638143,24.67418663,216.45,216.37,24.67418663]
[1734550638537,24.67418663,216.44,216.36,24.67418663]
[1734550639047,24.67418663,216.44,216.37,24.67418663]
[1734550639244,24.67418663,216.49,216.41,24.67418663]
[1734550639435,24.67418663,216.51,216.43,24.67418663]
[1734550639744,24.67418663,216.5,216.43,24.67418663]
[1734550641249,1.6126,216.55,216.43,24.67418663]
[1734550641250,24.67418663,216.52,216.43,24.67418663]
[1734550641472,24.67418663,216.51,216.43,24.67418663]
[1734550641753,1.6126,216.55,216.41,24.67418663]
[1734550641754,24.67418663,216.49,216.41,24.67418663]
[1734550641950,24.67418663,216.47,216.39,24.67418663]
[1734550642129,24.67418663,216.45,216.37,24.67418663]
[1734550642529,24.67418663,216.47,216.39,24.67418663]
[1734550642724,24.67418663,216.45,216.39,24.67418663]
[1734550643230,24.67418663,216.47,216.39,24.67418663]
[1734550644251,24.67418663,216.47,216.41,24.67418663]
[1734550644445,24.67418663,216.49,216.41,24.67418663]
[1734550644827,24.67418663,216.47,216.37,20.0]
[1734550645027,24.67418663,216.47,216.4,24.67418663]
[1734550645243,24.67418663,216.51,216.44,24.67418663]
[1734550645431,24.67418663,216.49,216.4,0.69294659]
[1734550645636,24.67418663,216.48,216.39,24.67418663]
[1734550645842,24.67418663,216.45,216.37,44.67418663]
[1734550646064,24.67418663,216.45,216.37,24.67418663]
[1734550646940,24.67418663,216.47,216.39,24.67418663]
[1734550647140,24.67418663,216.45,216.37,24.67418663]
[1734550647466,24.67418663,216.47,216.39,24.67418663]
[1734550648358,24.67418663,216.43,216.35,24.67418663]
[1734550648559,24.67418663,216.45,216.37,24.67418663]
[1734550648994,24.67418663,216.47,216.39,24.67418663]
[1734550650176,24.67418663,216.49,216.41,24.67418663]
[1734550650787,24.67418663,216.47,216.39,24.67418663]
[1734550650944,24.67418663,216.45,216.37,24.67418663]
[1734550651144,24.67418663,216.43,216.35,24.67418663]
[1734550651756,24.67418663,216.38,216.33,0.5661447]
[1734550651946,24.67418663,216.48,216.33,0.5661447]
[1734550651947,24.67418663,216.39,216.33,0.5661447]
[1734550652145,24.67418663,216.4,216.33,0.5661447]
[1734550652869,24.67418663,216.41,216.34,24.67418663]
[1734550653554,24.67418663,216.41,216.33,25.24033133]
[1734550653954,24.67418663,216.42,216.35,24.67418663]
[1734550654154,24.67418663,216.41,216.34,24.67418663]
[1734550655054,24.67418663,216.44,216.36,24.67418663]
[1734550655488,23.776884,216.54,216.35,24.67418663]
[1734550655489,24.67418663,216.43,216.35,24.67418663]
[1734550655996,24.67418663,216.44,216.37,24.67418663]
[1734550656286,24.67418663,216.48,216.4,24.67418663]
[1734550656524,24.67418663,216.42,216.33,0.5661447]
[1734550656657,24.67418663,216.48,216.33,0.5661447]
[1734550656658,24.67418663,216.36,216.33,0.5661447]
[1734550656859,1.521,216.42,216.33,0.5661447]
[1734550657083,24.67418663,216.34,216.33,0.5661447]
[1734550659584,23.776884,216.41,216.33,0.5661447]
[1734550659585,24.67418663,216.36,216.33,0.5661447]
[1734550659891,24.67418663,216.35,216.33,0.5661447]
[1734550660089,24.67418663,216.34,216.33,0.5661447]
[1734550661317,48.45107063,216.34,216.33,0.5661447]
[1734550662021,48.45107063,216.34,216.33,4.47e-05]
[1734550663819,20.0,216.31,216.18,24.67418663]
[1734550663988,24.67418663,216.24,216.16,6.4096]
[1734550664191,24.67418663,216.22,216.16,6.4096]
[1734550664717,24.67418663,216.2,216.12,26.19178663]
[1734550665725,24.67418663,216.24,216.15,24.67418663]
[1734550666020,24.67418663,216.24,216.17,24.17418663]
[1734550666180,21.633,216.3,216.12,1.5176]
[1734550666181,24.67418663,216.21,216.12,1.5176]
[1734550666381,24.67418663,216.19,216.11,31.83433133]
[1734550667214,24.67418663,216.21,216.13,24.67418663]
[1734550668735,24.67418663,216.21,216.11,7.1601447]
[1734550668944,24.67418663,216.17,216.11,7.1601447]
[1734550669110,24.67418663,216.15,216.11,0.5661447]
[1734550669445,24.67418663,216.14,216.11,0.5661447]
[1734550669601,23.776884,216.25,216.12,24.67418663]
[1734550669806,20.0,216.22,216.11,0.5661447]
[1734550670007,24.67418663,216.17,216.11,0.5661447]
[1734550670536,24.67418663,216.15,216.11,0.5661447]
[1734550670700,24.67418663,216.16,216.11,0.5661447]
[1734550671245,6.0864,216.18,216.11,0.5661447]
[1734550671246,24.67418663,216.15,216.11,0.5661447]
[1734550671601,24.67418663,216.16,216.11,0.5661447]
[1734550671912,24.67418663,216.18,216.11,0.5661447]
[1734550672110,24.67418663,216.2,216.12,24.67418663]
[1734550672639,24.67418663,216.18,216.12,24.67418663]
[1734550672841,24.67418663,216.2,216.12,24.67418663]
[1734550673429,24.67418663,216.22,216.14,24.67418663]
[1734550674033,24.67418663,216.24,216.16,24.67418663]
[1734550674233,24.67418663,216.22,216.14,24.67418663]
[1734550675837,24.67418663,216.26,216.18,24.67418663]
[1734550676840,24.67418663,216.28,216.2,24.67418663]
[1734550677448,24.67418663,216.3,216.22,24.67418663]
[1734550677635,24.67418663,216.32,216.24,24.67418663]
[1734550678455,24.67418663,216.34,216.26,24.67418663]
[1734550678660,6.0235,216.39,216.28,24.67418663]
[1734550678661,24.67418663,216.36,216.28,24.67418663]
[1734550678966,24.67418663,216.34,216.26,24.67418663]
[1734550679162,24.67418663,216.3,216.22,24.67418663]
[1734550679462,24.67418663,216.26,216.18,24.67418663]
[1734550679961,24.67418663,216.27,216.2,24.67418663]
[1734550680365,24.67418663,216.32,216.17,0.12549]
[1734550680664,24.67418663,216.33,216.26,24.67418663]
[1734550680969,24.67418663,216.32,216.24,24.67418663]
[1734550681271,24.67418663,216.25,216.16,6.3589]
[1734550681564,24.67418663,216.19,216.12,24.67418663]
[1734550681881,24.67418663,216.14,216.07,24.67418663]
[1734550682160,23.776884,216.25,216.03,6.3291]
[1734550682161,20.0,216.18,216.05,11.5711]
[1734550682328,24.67418663,216.19,216.12,0.84609079]
[1734550682532,24.67418663,216.15,216.12,0.84609079]
[1734550682968,24.67418663,216.19,216.12,0.84609079]
[1734550683157,24.67418663,216.17,216.11,0.5661447]
[1734550683674,24.67418663,216.15,216.11,0.5661447]
[1734550684974,24.67418663,216.13,216.11,0.5661447]
[1734550687783,23.776884,216.12,216.11,0.5661447]
[1734550689269,20.0,216.09,216.0,197.1822]
[1734550689589,24.67418663,216.01,216.0,197.1822]
[1734550690364,48.45107063,216.01,216.0,197.1822]
[1734550690790,48.45107063,216.01,216.0,191.82124288]
[1734550691903,24.67418663,216.01,216.0,191.82124288]
[1734550692288,24.67418663,216.03,216.0,191.82124288]
[1734550692675,24.67418663,216.05,216.0,191.82124288]
[1734550693175,24.67418663,216.07,216.0,216.49542951]
[1734550693401,24.67418663,216.09,216.0,216.49542951]
[1734550693582,24.67418663,216.09,216.02,24.67418663]
[1734550694791,24.67418663,216.09,216.0,216.49542951]
[1734550695107,24.67418663,216.09,216.02,24.67418663]
[1734550695307,24.67418663,216.11,216.04,24.67418663]
[1734550696204,24.67418663,216.11,216.02,24.67418663]
[1734550696416,24.67418663,216.11,216.04,24.67418663]
[1734550696709,24.67418663,216.11,216.01,6.0193]
[1734550696710,24.67418663,216.15,216.08,24.67418663]
[1734550697008,24.67418663,216.21,216.12,24.67418663]
[1734550697209,24.67418663,216.21,216.14,24.67418663]
[1734550697414,24.67418663,216.23,216.15,24.67418663]
[1734550697705,24.67418663,216.22,216.14,24.67418663]
[1734550697920,24.67418663,216.21,216.13,24.67418663]
[1734550698109,1.86084667,216.31,216.07,1.6596]
[1734550698110,24.67418663,216.25,216.17,24.67418663]
[1734550698313,24.67418663,216.21,216.13,24.67418663]
[1734550699236,24.67418663,216.26,216.1,6.3966]
[1734550699237,24.67418663,216.19,216.11,24.67418663]
[1734550699387,24.67418663,216.17,216.1,6.3966]
[1734550699987,24.67418663,216.26,216.11,24.67418663]
[1734550699988,24.67418663,216.19,216.11,24.67418663]
[1734550701093,24.67418663,216.17,216.09,24.67418663]
[1734550701431,24.67418663,216.26,216.05,31.30438663]
[1734550701588,24.67418663,216.13,216.05,24.67418663]
[1734550701788,24.67418663,216.11,216.03,24.67418663]
[1734550702005,24.67418663,216.09,216.01,24.67418663]
[1734550702206,24.67418663,216.07,216.0,191.82124288]
[1734550702611,24.67418663,216.05,216.0,191.82124288]
[1734550702815,24.67418663,216.03,216.0,191.82124288]
[1734550705722,24.67418663,216.12,216.01,24.67418663]
[1734550706016,24.67418663,216.12,216.03,24.67418663]
[1734550706406,24.67418663,216.14,216.05,24.67418663]
[1734550706603,24.67418663,216.14,216.07,24.67418663]
[1734550706802,24.67418663,216.14,216.05,24.67418663]
[1734550707007,24.67418663,216.12,216.05,24.67418663]
[1734550707723,24.67418663,216.14,216.05,24.67418663]
[1734550707895,24.67418663,216.12,216.05,24.67418663]
[1734550708096,24.67418663,216.12,216.03,24.67418663]
[1734550708306,24.67418663,216.1,216.03,24.67418663]
[1734550709157,24.67418663,216.12,216.03,24.67418663]
[1734550710015,24.67418663,216.1,216.03,24.67418663]
[1734550710426,24.67418663,216.08,216.01,24.67418663]
[1734550710599,24.67418663,216.08,216.0,191.82124288]
[1734550711927,24.67418663,216.08,216.01,24.67418663]
[1734550712226,24.67418663,216.1,216.01,24.67418663]
[1734550712899,24.67418663,216.08,216.0,191.82124288]
[1734550713711,24.67418663,216.06,216.0,191.82124288]
[1734550713898,24.67418663,216.04,216.0,191.82124288]
[1734550714099,24.67418663,216.02,216.0,191.82124288]
[1734550715217,24.67418663,216.05,216.0,191.82124288]
[1734550715927,24.67418663,216.03,216.0,191.82124288]
[1734550716933,24.67418663,216.01,216.0,191.82124288]
[1734550717841,48.45107063,216.01,216.0,191.82124288]
[1734550718832,24.67418663,216.01,216.0,191.82124288]
[1734550719039,48.45107063,216.01,216.0,191.82124288]
[1734550720222,48.45107063,216.01,216.0,161.89029913]
[1734550720406,48.45107063,216.01,216.0,154.16459913]
[1734550720612,48.45107063,216.01,216.0,138.59609913]
[1734550721029,48.45107063,216.01,216.0,123.28609913]
[1734550721230,48.45107063,216.01,216.0,107.97609913]
[1734550723444,48.45107063,216.01,216.0,80.18829189]
[1734550723739,48.45107063,216.01,216.0,67.64199559]
[1734550723911,48.45107063,216.01,216.0,53.82199559]
[1734550724111,48.45107063,216.01,216.0,24.69199559]
[1734550724323,48.45107063,216.01,216.0,10.82199559]
[1734550724633,48.45107063,216.01,215.9,0.5661447]
[1734550724838,24.67418663,215.93,215.9,0.5661447]
[1734550725155,24.67418663,215.94,215.9,0.5661447]
[1734550725914,23.776884,215.91,215.9,0.5661447]
[1734550726110,23.776884,215.91,215.76,0.69478096]
[1734550726111,23.776884,215.87,215.75,6.6333]
[1734550726318,24.67418663,215.81,215.75,6.6333]
[1734550726536,24.67418663,215.8,215.73,24.67418663]
[1734550726709,24.67418663,215.78,215.7,6.465]
[1734550726910,23.776884,215.83,215.69,24.67418663]
[1734550726911,24.67418663,215.77,215.69,24.67418663]
[1734550727144,24.67418663,215.75,215.68,25.24033133]
[1734550727365,24.67418663,215.74,215.68,0.5661447]
[1734550727646,24.67418663,215.73,215.68,0.5661447]
[1734550727813,24.67418663,215.72,215.68,0.5661447]
[1734550728209,24.67418663,215.69,215.68,0.5661447]
[1734550732337,24.67418663,215.74,215.68,0.5661447]
[1734550732537,24.67418663,215.75,215.68,0.5661447]
[1734550732745,24.67418663,215.73,215.68,0.5661447]
[1734550733042,24.67418663,215.72,215.68,0.5661447]
[1734550733723,24.67418663,215.74,215.68,0.5661447]
[1734550733925,24.67418663,215.77,215.7,24.67418663]
[1734550734132,24.67418663,215.76,215.69,24.67418663]
[1734550734532,24.67418663,215.77,215.69,24.67418663]
[1734550734722,24.67418663,215.76,215.69,24.67418663]
[1734550739042,24.67418663,215.7,215.68,0.5661447]
[1734550739628,30.269084,215.69,215.68,0.5661447]
[1734550739838,30.269084,215.69,215.5,6.5573]
[1734550739839,20.0,215.66,215.52,24.67418663]
[1734550740136,24.67418663,215.6,215.52,24.67418663]
[1734550741520,24.67418663,215.58,215.52,24.67418663]
[1734550742143,24.67418663,215.61,215.54,24.67418663]
[1734550742469,24.67418663,215.61,215.52,24.67418663]
[1734550742978,24.67418663,215.61,215.54,24.67418663]
[1734550743388,24.67418663,215.63,215.56,24.67418663]
[1734550743596,24.67418663,215.63,215.5,7.25308001]
[1734550743597,24.67418663,215.65,215.58,24.67418663]
[1734550743873,1.6352,215.7,215.58,24.67418663]
[1734550743874,24.67418663,215.67,215.58,24.67418663]
[1734550744057,24.67418663,215.67,215.6,24.67418663]
[1734550744253,24.67418663,215.71,215.63,24.67418663]
[1734550744472,24.67418663,215.73,215.65,24.67418663]
[1734550744680,24.67418663,215.74,215.67,24.67418663]
[1734550744865,24.67418663,215.76,215.69,24.67418663]
[1734550745054,24.67418663,215.76,215.68,24.67418663]
[1734550745379,24.67418663,215.82,215.62,0.69530111]
[1734550745380,24.67418663,215.78,215.65,11.5925]
[1734550745553,1.6324,215.83,215.65,11.5925]
[1734550745554,24.67418663,215.83,215.75,24.67418663]
[1734550745874,24.67418663,215.85,215.77,24.67418663]
[1734550746045,24.67418663,215.84,215.76,24.67418663]
[1734550746248,24.67418663,215.82,215.74,24.67418663]
[1734550746474,24.67418663,215.83,215.75,24.67418663]
[1734550746657,24.67418663,215.84,215.76,24.67418663]
[1734550747060,24.67418663,215.83,215.75,24.67418663]
[1734550747454,24.67418663,215.82,215.76,24.67418663]
[1734550747678,24.67418663,215.84,215.76,24.67418663]
[1734550747979,24.67418663,215.84,215.78,24.67418663]
[1734550748351,6.4069,215.99,215.74,20.0]
[1734550748352,24.67418663,215.87,215.8,24.67418663]
[1734550748682,24.67418663,215.83,215.74,24.67418663]
[1734550748975,24.67418663,215.79,215.7,24.67418663]
[1734550749201,24.67418663,215.77,215.68,24.67418663]
[1734550749339,24.67418663,215.73,215.66,24.67418663]
[1734550749767,24.67418663,215.75,215.66,24.67418663]
[1734550750070,24.67418663,215.75,215.61,10.63062926]
[1734550750071,24.67418663,215.71,215.62,24.67418663]
[1734550750275,24.67418663,215.69,215.62,24.67418663]
[1734550750689,24.67418663,215.71,215.64,24.67418663]
[1734550750894,24.67418663,215.73,215.64,24.67418663]
[1734550751396,24.67418663,215.73,215.61,18.58668901]
[1734550751699,24.67418663,215.73,215.65,24.67418663]
[1734550752673,24.67418663,215.75,215.67,24.67418663]
[1734550752878,24.67418663,215.77,215.69,24.67418663]
[1734550753291,24.67418663,215.75,215.67,24.67418663]
[1734550753492,24.67418663,215.71,215.63,24.67418663]
[1734550753984,24.67418663,215.73,215.65,24.67418663]
[1734550754168,24.67418663,215.75,215.67,24.67418663]
[1734550754370,24.67418663,215.73,215.65,44.67418663]
[1734550755800,24.67418663,215.75,215.67,24.67418663]
[1734550756098,24.67418663,215.73,215.65,44.67418663]
[1734550756600,24.67418663,215.81,215.71,24.67418663]
[1734550756896,24.67418663,215.81,215.73,24.67418663]
[1734550757802,2.75690242,215.86,215.75,24.67418663]
[1734550757803,24.67418663,215.83,215.75,24.67418663]
[1734550758706,24.67418663,215.85,215.77,24.67418663]
[1734550759097,24.67418663,215.87,215.79,24.67418663]
[1734550759581,24.67418663,215.83,215.75,24.67418663]
[1734550759781,24.67418663,215.81,215.73,24.67418663]
[1734550760206,24.67418663,215.79,215.71,44.67418663]
[1734550760710,24.67418663,215.81,215.73,24.67418663]
[1734550761726,24.67418663,215.85,215.75,24.67418663]
[1734550762091,24.67418663,215.85,215.77,24.67418663]
[1734550762801,24.67418663,215.83,215.74,24.67418663]
[1734550762984,24.67418663,215.81,215.74,24.67418663]
[1734550763182,24.67418663,215.79,215.72,24.67418663]
[1734550763407,24.67418663,215.79,215.7,24.67418663]
[1734550763609,24.67418663,215.75,215.68,24.67418663]
[1734550763986,24.67418663,215.75,215.66,24.67418663]
[1734550764719,24.67418663,215.77,215.68,24.67418663]
[1734550764891,24.67418663,215.75,215.68,24.67418663]
[1734550765228,24.67418663,215.75,215.66,24.67418663]
[1734550765393,24.67418663,215.73,215.64,24.67418663]
[1734550765588,24.67418663,215.75,215.66,24.67418663]
[1734550765794,24.67418663,215.75,215.68,24.67418663]
[1734550766024,24.67418663,215.77,215.7,24.67418663]
[1734550766389,24.67418663,215.79,215.7,24.67418663]
[1734550766714,24.67418663,215.77,215.7,24.67418663]
[1734550767795,24.67418663,215.79,215.7,24.67418663]
[1734550768293,24.67418663,215.79,215.72,24.67418663]
[1734550768498,24.67418663,215.77,215.68,24.67418663]
[1734550768816,24.67418663,215.73,215.66,24.67418663]
[1734550770217,24.67418663,215.75,215.66,24.67418663]
[1734550770624,24.67418663,215.73,215.66,24.67418663]
[1734550771122,24.67418663,215.75,215.68,24.67418663]
[1734550771493,24.67418663,215.77,215.68,24.67418663]
[1734550771693,24.67418663,215.77,215.7,24.67418663]
[1734550772002,24.67418663,215.81,215.74,24.67418663]
[1734550772197,24.67418663,215.83,215.74,24.67418663]
[1734550772420,1.5767,215.92,215.78,24.67418663]
[1734550772737,24.67418663,215.89,215.8,24.67418663]
[1734550773115,24.67418663,215.87,215.8,24.67418663]
[1734550773639,24.67418663,215.89,215.8,24.67418663]
[1734550773796,24.67418663,215.87,215.8,24.67418663]
[1734550774736,24.67418663,215.87,215.78,24.67418663]
[1734550775815,24.67418663,215.87,215.8,24.67418663]
[1734550776635,24.67418663,215.87,215.78,24.67418663]
[1734550777217,23.776884,215.89,215.78,24.67418663]
[1734550777218,24.67418663,215.85,215.78,24.67418663]
[1734550777715,24.67418663,215.87,215.78,24.67418663]
[1734550777896,20.0,215.9,215.82,24.67418663]
[1734550777897,24.67418663,215.9,215.82,24.67418663]
[1734550778096,24.67418663,215.94,215.86,24.67418663]
[1734550778343,1.5981,215.98,215.88,24.67418663]
[1734550778344,24.67418663,215.96,215.88,24.67418663]
[1734550778898,26.27228663,215.98,215.9,24.67418663]
[1734550779207,24.67418663,216.0,215.92,24.67418663]
[1734550779638,24.67418663,215.96,215.88,24.67418663]
[1734550780214,24.67418663,215.98,215.9,24.67418663]
[1734550780626,24.67418663,215.96,215.88,24.67418663]
[1734550782035,24.67418663,215.98,215.9,24.67418663]
[1734550782232,7.979,216.05,215.92,24.67418663]
[1734550782443,7.979,216.05,215.88,6.2051]
[1734550782444,24.67418663,216.01,215.93,24.67418663]
[1734550783118,24.67418663,215.99,215.91,24.67418663]
[1734550783319,24.67418663,215.97,215.89,24.67418663]
[1734550785650,20.0,216.02,215.87,24.67418663]
[1734550785651,24.67418663,215.95,215.87,24.67418663]
[1734550785825,24.67418663,215.93,215.85,24.67418663]
[1734550786226,24.67418663,215.89,215.81,24.67418663]
[1734550787126,24.67418663,215.85,215.77,24.67418663]
[1734550788943,24.67418663,215.91,215.83,24.67418663]
[1734550790561,24.67418663,215.93,215.85,24.67418663]
[1734550790752,24.67418663,215.95,215.87,24.67418663]
[1734550791453,24.67418663,215.97,215.89,24.67418663]
[1734550791635,24.67418663,215.99,215.89,24.67418663]
[1734550792859,24.67418663,215.99,215.91,24.67418663]
[1734550794157,24.67418663,216.01,215.93,24.67418663]
[1734550795059,24.67418663,215.97,215.89,24.67418663]
[1734550795243,24.67418663,215.95,215.87,24.67418663]
[1734550796848,24.67418663,215.93,215.85,24.67418663]
[1734550799059,24.67418663,215.87,215.8,6.278]
[1734550799361,24.67418663,215.89,215.81,24.67418663]
[1734550799862,24.67418663,215.87,215.79,24.67418663]
[1734550800061,24.67418663,215.83,215.75,24.67418663]
[1734550800270,24.67418663,215.81,215.73,24.67418663]
[1734550800430,24.67418663,215.79,215.69,24.67418663]
[1734550800631,24.67418663,215.79,215.71,24.67418663]
[1734550800835,24.67418663,215.81,215.73,24.67418663]
[1734550801164,24.67418663,215.79,215.71,24.67418663]
[1734550801861,24.67418663,215.83,215.75,24.67418663]
[1734550802378,24.67418663,215.85,215.77,24.67418663]
[1734550802659,23.97407203,216.06,215.74,11.5878]
[1734550802660,24.67418663,215.95,215.83,24.67418663]
[1734550802843,24.67418663,216.01,215.92,24.67418663]
[1734550803044,24.67418663,215.98,215.9,24.67418663]
[1734550803250,7.16518473,216.02,215.85,20.0]
[1734550803565,7.16518473,216.02,215.78,138.3760301]
[1734550803566,6.4477,216.03,215.79,0.69465712]
[1734550803738,2.71635777,216.01,215.79,0.69465712]
[1734550803936,2.71635777,216.01,215.83,20.0]
[1734550804279,24.67418663,215.97,215.89,24.67418663]
[1734550804777,24.67418663,216.03,215.95,24.67418663]
[1734550805147,24.67418663,216.07,215.99,24.67418663]
[1734550805349,24.67418663,216.05,215.97,24.67418663]
[1734550806053,24.67418663,216.03,215.95,24.67418663]
[1734550806283,24.67418663,215.99,215.91,24.67418663]
[1734550806745,24.67418663,215.97,215.91,24.67418663]
[1734550806950,24.67418663,216.01,215.93,24.67418663]